[Event "December 12 Late 2023"]
[Site "https://www.chess.com"]
[Date "2023.12.12"]
[Round "10"]
[White "Golubenko, Valentina"]
[Black "Kniazev, Igor"]
[Result "0-1"]
[Board "86"]
[TimeControl "180+1"]
[WhiteFideId "4501993"]
[BlackFideId "4136349"]
[WhiteElo "2268"]
[BlackElo "2129"]
[WhiteTeam "CRO"]
[BlackTeam "RUS"]
[WhiteClock "0:00:03"]
[BlackClock "0:00:19"]

1. e4 {[%clk 0:03:00]}  e5 {[%clk 0:02:58]} 2. Nf3 {[%clk 0:03:00]}  Nf6 {[%clk 0:02:57]} 3. Nc3 {[%clk 0:02:59]}  Bb4 {[%clk 0:02:56]} 4. d3 {[%clk 0:02:56]}  d5 {[%clk 0:02:53]} 5. exd5 {[%clk 0:02:54]}  Nxd5 {[%clk 0:02:52]} 6. Bd2 {[%clk 0:02:54]}  Nxc3 {[%clk 0:02:52]} 7. bxc3 {[%clk 0:02:52]}  Bd6 {[%clk 0:02:52]} 8. Be2 {[%clk 0:02:50]}  b6 {[%clk 0:02:47]} 9. O-O {[%clk 0:02:51]}  Bb7 {[%clk 0:02:48]} 10. Ng5 {[%clk 0:02:37]}  O-O {[%clk 0:02:37]} 11. Bf3 {[%clk 0:02:37]}  Bxf3 {[%clk 0:02:32]} 12. Qxf3 {[%clk 0:02:36]}  Nd7 {[%clk 0:02:33]} 13. d4 {[%clk 0:02:18]}  Qf6 {[%clk 0:02:16]} 14. Qh3 {[%clk 0:01:44]}  h6 {[%clk 0:02:06]} 15. Ne4 {[%clk 0:01:25]}  Qe6 {[%clk 0:02:05]} 16. Qd3 {[%clk 0:00:49]}  f5 {[%clk 0:01:41]} 17. Nxd6 {[%clk 0:00:49]}  cxd6 {[%clk 0:01:38]} 18. Rfe1 {[%clk 0:00:49]}  e4 {[%clk 0:01:37]} 19. Qb5 {[%clk 0:00:48]}  Rac8 {[%clk 0:01:27]} 20. d5 {[%clk 0:00:40]}  Qe7 {[%clk 0:01:21]} 21. Bf4 {[%clk 0:00:35]}  Rxc3 {[%clk 0:01:08]} 22. Qb4 {[%clk 0:00:34]}  Rc5 {[%clk 0:01:08]} 23. f3 {[%clk 0:00:30]}  Rxd5 {[%clk 0:00:53]} 24. fxe4 {[%clk 0:00:28]}  fxe4 {[%clk 0:00:53]} 25. Rxe4 {[%clk 0:00:26]}  Qf6 {[%clk 0:00:53]} 26. Rae1 {[%clk 0:00:18]}  Rf5 {[%clk 0:00:49]} 27. g3 {[%clk 0:00:15]}  Nc5 {[%clk 0:00:39]} 28. Qc4+ {[%clk 0:00:15]}  d5 {[%clk 0:00:36]} 29. Be5 {[%clk 0:00:13]}  dxc4 {[%clk 0:00:34]} 30. Bxf6 {[%clk 0:00:13]}  R5xf6 {[%clk 0:00:34]} 31. Rxc4 {[%clk 0:00:13]}  Kh7 {[%clk 0:00:30]} 32. Re2 {[%clk 0:00:13]}  R8f7 {[%clk 0:00:30]} 33. a4 {[%clk 0:00:13]}  Rd6 {[%clk 0:00:30]} 34. a5 {[%clk 0:00:12]}  Ne6 {[%clk 0:00:24]} 35. axb6 {[%clk 0:00:12]}  Rxb6 {[%clk 0:00:24]} 36. Rce4 {[%clk 0:00:12]}  Ng5 {[%clk 0:00:23]} 37. Rf4 {[%clk 0:00:12]}  Nf3+ {[%clk 0:00:23]} 38. Kf2 {[%clk 0:00:11]}  Rxf4 {[%clk 0:00:23]} 39. gxf4 {[%clk 0:00:11]}  Nd4 {[%clk 0:00:24]} 40. Rd2 {[%clk 0:00:12]}  Nf5 {[%clk 0:00:24]} 41. Rd5 {[%clk 0:00:11]}  Kg6 {[%clk 0:00:23]} 42. Kf3 {[%clk 0:00:10]}  Rc6 {[%clk 0:00:23]} 43. Ke4 {[%clk 0:00:09]}  Nd6+ {[%clk 0:00:23]} 44. Ke5 {[%clk 0:00:09]}  Nf7+ {[%clk 0:00:22]} 45. Ke4 {[%clk 0:00:09]}  Rxc2 {[%clk 0:00:22]} 46. f5+ {[%clk 0:00:09]}  Kf6 {[%clk 0:00:22]} 47. Rd4 {[%clk 0:00:09]}  Ng5+ {[%clk 0:00:21]} 48. Kf4 {[%clk 0:00:08]}  Rf2+ {[%clk 0:00:21]} 49. Kg3 {[%clk 0:00:08]}  Re2 {[%clk 0:00:21]} 50. Kg4 {[%clk 0:00:07]}  Rg2+ {[%clk 0:00:20]} 51. Kf4 {[%clk 0:00:06]}  Rf2+ {[%clk 0:00:20]} 52. Kg4 {[%clk 0:00:07]}  Rxf5 {[%clk 0:00:20]} 53. Rd6+ {[%clk 0:00:06]}  Ke5 {[%clk 0:00:20]} 54. Ra6 {[%clk 0:00:05]}  Rf7 {[%clk 0:00:19]} 55. Ra5+ {[%clk 0:00:05]}  Ke4 {[%clk 0:00:18]} 56. Ra4+ {[%clk 0:00:05]}  Kd5 {[%clk 0:00:18]} 57. Ra5+ {[%clk 0:00:06]}  Kc6 {[%clk 0:00:19]} 58. Ra6+ {[%clk 0:00:06]}  Kb5 {[%clk 0:00:19]} 59. Rg6 {[%clk 0:00:05]}  a5 {[%clk 0:00:19]} 60. h4 {[%clk 0:00:05]}  Ne4 {[%clk 0:00:17]} 61. Re6 {[%clk 0:00:05]}  Nf6+ {[%clk 0:00:17]} 62. Kf5 {[%clk 0:00:03]}  Nd5+ {[%clk 0:00:17]} 63. Kg6 {[%clk 0:00:03]}  Nf4+ {[%clk 0:00:16]} 64. Kxf7 {[%clk 0:00:03]}  Nxe6 {[%clk 0:00:16]} 65. Kxe6 {[%clk 0:00:03]}  a4 {[%clk 0:00:17]} 66. Kf5 {[%clk 0:00:04]}  a3 {[%clk 0:00:18]} 67. Kg6 {[%clk 0:00:04]}  a2 {[%clk 0:00:19]} 68. Kxg7 {[%clk 0:00:05]}  a1=Q+ {[%clk 0:00:19]} 69. Kxh6 {[%clk 0:00:05]}  Qg1 {[%clk 0:00:19]} 70. h5 {[%clk 0:00:05]}  Qg4 {[%clk 0:00:19]} 71. Kh7 {[%clk 0:00:03]}  Qxh5+ {[%clk 0:00:19]} 0-1

[Event "December 12 Late 2023"]
[Site "https://www.chess.com"]
[Date "2023.12.12"]
[Round "10"]
[White "Burke, Paul"]
[Black "Kujawski, Adam"]
[Result "1-0"]
[Board "90"]
[TimeControl "180+1"]
[WhiteFideId "2605767"]
[BlackFideId "1100920"]
[WhiteElo "1856"]
[BlackElo "2329"]
[WhiteTeam "CAN"]
[BlackTeam "POL"]
[WhiteClock "0:00:37"]
[BlackClock "0:00:08"]

1. e4 {[%clk 0:03:00]}  e6 {[%clk 0:02:59]} 2. d4 {[%clk 0:02:59]}  d5 {[%clk 0:02:58]} 3. e5 {[%clk 0:02:59]}  c5 {[%clk 0:02:58]} 4. Qg4 {[%clk 0:02:59]}  cxd4 {[%clk 0:02:57]} 5. Nf3 {[%clk 0:02:59]}  Nc6 {[%clk 0:02:41]} 6. Bd3 {[%clk 0:02:58]}  h5 {[%clk 0:02:00]} 7. Qg3 {[%clk 0:02:58]}  g6 {[%clk 0:01:56]} 8. O-O {[%clk 0:02:56]}  Nh6 {[%clk 0:01:51]} 9. Re1 {[%clk 0:02:42]}  Nf5 {[%clk 0:01:50]} 10. Bxf5 {[%clk 0:02:41]}  exf5 {[%clk 0:01:43]} 11. Bg5 {[%clk 0:02:34]}  Be7 {[%clk 0:01:43]} 12. Bxe7 {[%clk 0:02:30]}  Qxe7 {[%clk 0:01:42]} 13. c3 {[%clk 0:02:27]}  dxc3 {[%clk 0:01:26]} 14. Nxc3 {[%clk 0:02:26]}  Be6 {[%clk 0:01:25]} 15. Nb5 {[%clk 0:02:26]}  O-O {[%clk 0:01:24]} 16. Qf4 {[%clk 0:02:22]}  Rfd8 {[%clk 0:01:10]} 17. Qh6 {[%clk 0:02:19]}  Qf8 {[%clk 0:01:09]} 18. Qg5 {[%clk 0:02:16]}  Rac8 {[%clk 0:00:58]} 19. Nbd4 {[%clk 0:02:08]}  Qg7 {[%clk 0:00:55]} 20. Nb5 {[%clk 0:01:57]}  Rd7 {[%clk 0:00:52]} 21. Nd6 {[%clk 0:01:57]}  Rcd8 {[%clk 0:00:49]} 22. Rad1 {[%clk 0:01:37]}  Nxe5 {[%clk 0:00:47]} 23. Nxe5 {[%clk 0:01:34]}  Rxd6 {[%clk 0:00:47]} 24. Nf3 {[%clk 0:01:29]}  Qxb2 {[%clk 0:00:44]} 25. Ne5 {[%clk 0:01:20]}  d4 {[%clk 0:00:37]} 26. Nxg6 {[%clk 0:01:11]}  fxg6 {[%clk 0:00:37]} 27. Qxg6+ {[%clk 0:01:11]}  Kf8 {[%clk 0:00:38]} 28. Rxe6 {[%clk 0:01:05]}  Rxe6 {[%clk 0:00:37]} 29. Qxe6 {[%clk 0:01:05]}  d3 {[%clk 0:00:36]} 30. Qxf5+ {[%clk 0:01:04]}  Ke7 {[%clk 0:00:33]} 31. Qg5+ {[%clk 0:01:00]}  Ke8 {[%clk 0:00:23]} 32. Qxh5+ {[%clk 0:00:57]}  Kf8 {[%clk 0:00:21]} 33. Qf5+ {[%clk 0:00:55]}  Ke7 {[%clk 0:00:20]} 34. Qg5+ {[%clk 0:00:52]}  Qf6 {[%clk 0:00:19]} 35. Qc5+ {[%clk 0:00:50]}  Rd6 {[%clk 0:00:17]} 36. Qxa7 {[%clk 0:00:41]}  d2 {[%clk 0:00:15]} 37. Qxb7+ {[%clk 0:00:41]}  Rd7 {[%clk 0:00:15]} 38. Qe4+ {[%clk 0:00:40]}  Kf7 {[%clk 0:00:12]} 39. Qc4+ {[%clk 0:00:38]}  Kg7 {[%clk 0:00:12]} 40. Qg4+ {[%clk 0:00:38]}  Kh8 {[%clk 0:00:08]} 41. Qxd7 {[%clk 0:00:37]} 1-0

[Event "December 12 Late 2023"]
[Site "https://www.chess.com"]
[Date "2023.12.12"]
[Round "10"]
[White "Oliveira, Tiago Batista"]
[Black "Travadon, Loic"]
[Result "1/2-1/2"]
[Board "93"]
[TimeControl "180+1"]
[WhiteFideId "2108291"]
[BlackFideId "26092131"]
[WhiteElo "2087"]
[BlackElo "2131"]
[WhiteTeam "BRA"]
[BlackTeam "FRA"]
[WhiteClock "0:00:08"]
[BlackClock "0:01:04"]

1. d4 {[%clk 0:02:41]}  d5 {[%clk 0:02:57]} 2. c4 {[%clk 0:02:37]}  c6 {[%clk 0:02:56]} 3. Nf3 {[%clk 0:02:36]}  Nf6 {[%clk 0:02:54]} 4. Qc2 {[%clk 0:02:36]}  e6 {[%clk 0:02:52]} 5. g3 {[%clk 0:02:36]}  Nbd7 {[%clk 0:02:48]} 6. Bg2 {[%clk 0:02:36]}  b6 {[%clk 0:02:47]} 7. O-O {[%clk 0:02:36]}  Bb7 {[%clk 0:02:47]} 8. Nbd2 {[%clk 0:02:34]}  Bd6 {[%clk 0:02:46]} 9. Rd1 {[%clk 0:02:34]}  O-O {[%clk 0:02:44]} 10. e4 {[%clk 0:02:34]}  dxe4 {[%clk 0:02:44]} 11. Nxe4 {[%clk 0:02:35]}  Nxe4 {[%clk 0:02:42]} 12. Qxe4 {[%clk 0:02:34]}  Nf6 {[%clk 0:02:42]} 13. Qe2 {[%clk 0:02:31]}  Qc7 {[%clk 0:02:40]} 14. Ne5 {[%clk 0:02:30]}  Bxe5 {[%clk 0:02:38]} 15. dxe5 {[%clk 0:02:30]}  Nd7 {[%clk 0:02:39]} 16. Bf4 {[%clk 0:02:17]}  Rad8 {[%clk 0:02:37]} 17. Rd6 {[%clk 0:02:01]}  Nc5 {[%clk 0:02:35]} 18. Rad1 {[%clk 0:01:54]}  a5 {[%clk 0:02:33]} 19. R1d2 {[%clk 0:01:34]}  Rd7 {[%clk 0:02:28]} 20. Qd1 {[%clk 0:01:33]}  Rxd6 {[%clk 0:02:23]} 21. Rxd6 {[%clk 0:01:27]}  a4 {[%clk 0:02:13]} 22. b4 {[%clk 0:01:21]}  axb3 {[%clk 0:02:12]} 23. axb3 {[%clk 0:01:21]}  b5 {[%clk 0:02:11]} 24. b4 {[%clk 0:01:11]}  Na6 {[%clk 0:02:08]} 25. Rd7 {[%clk 0:01:11]}  Qb8 {[%clk 0:02:07]} 26. cxb5 {[%clk 0:00:57]}  Nxb4 {[%clk 0:02:03]} 27. Qd6 {[%clk 0:00:24]}  Nd5 {[%clk 0:01:37]} 28. bxc6 {[%clk 0:00:20]}  Qxd6 {[%clk 0:01:35]} 29. Rxd6 {[%clk 0:00:18]}  Ba6 {[%clk 0:01:35]} 30. Bxd5 {[%clk 0:00:17]}  exd5 {[%clk 0:01:36]} 31. Rxd5 {[%clk 0:00:17]}  Rc8 {[%clk 0:01:34]} 32. Rc5 {[%clk 0:00:17]}  Kf8 {[%clk 0:01:33]} 33. c7 {[%clk 0:00:17]}  Ke7 {[%clk 0:01:32]} 34. Bd2 {[%clk 0:00:16]}  Kd7 {[%clk 0:01:30]} 35. Ba5 {[%clk 0:00:16]}  Bb7 {[%clk 0:01:28]} 36. Rc2 {[%clk 0:00:15]}  Bd5 {[%clk 0:01:27]} 37. Rd2 {[%clk 0:00:12]}  Ke6 {[%clk 0:01:27]} 38. f4 {[%clk 0:00:12]}  g6 {[%clk 0:01:27]} 39. Kf2 {[%clk 0:00:11]}  h5 {[%clk 0:01:26]} 40. Ke3 {[%clk 0:00:12]}  Ra8 {[%clk 0:01:25]} 41. Kd4 {[%clk 0:00:09]}  Bc6 {[%clk 0:01:22]} 42. Kc5 {[%clk 0:00:08]}  Bd7 {[%clk 0:01:19]} 43. Kb6 {[%clk 0:00:07]}  Bc8 {[%clk 0:01:17]} 44. Rd6+ {[%clk 0:00:07]}  Ke7 {[%clk 0:01:16]} 45. Bb4 {[%clk 0:00:07]}  Ra6+ {[%clk 0:01:16]} 46. Kc5 {[%clk 0:00:06]}  Rxd6 {[%clk 0:01:16]} 47. exd6+ {[%clk 0:00:06]}  Kd7 {[%clk 0:01:14]} 48. Kd5 {[%clk 0:00:05]}  Bb7+ {[%clk 0:01:13]} 49. Ke5 {[%clk 0:00:06]}  Ba6 {[%clk 0:01:12]} 50. Kf6 {[%clk 0:00:06]}  Bc4 {[%clk 0:01:12]} 51. h3 {[%clk 0:00:04]}  Be6 {[%clk 0:01:11]} 52. g4 {[%clk 0:00:04]}  hxg4 {[%clk 0:01:11]} 53. hxg4 {[%clk 0:00:04]}  Bxg4 {[%clk 0:01:11]} 54. Kxf7 {[%clk 0:00:04]}  Bf5 {[%clk 0:01:12]} 55. Kf6 {[%clk 0:00:04]}  Be4 {[%clk 0:01:11]} 56. Bc5 {[%clk 0:00:04]}  Bf5 {[%clk 0:01:10]} 57. Kg5 {[%clk 0:00:04]}  Kc8 {[%clk 0:01:10]} 58. Kf6 {[%clk 0:00:04]}  Kd7 {[%clk 0:01:11]} 59. Ke5 {[%clk 0:00:04]}  Kc8 {[%clk 0:01:11]} 60. Kd5 {[%clk 0:00:04]}  Kd7 {[%clk 0:01:12]} 61. Be3 {[%clk 0:00:04]}  Be6+ {[%clk 0:01:12]} 62. Kc5 {[%clk 0:00:04]}  Bf5 {[%clk 0:01:12]} 63. Bd4 {[%clk 0:00:04]}  Kc8 {[%clk 0:01:12]} 64. Kb6 {[%clk 0:00:05]}  Be4 {[%clk 0:01:11]} 65. Be5 {[%clk 0:00:05]}  Kd7 {[%clk 0:01:10]} 66. Ka7 {[%clk 0:00:05]}  Kc8 {[%clk 0:01:10]} 67. Bf6 {[%clk 0:00:05]}  Bf5 {[%clk 0:01:10]} 68. Be7 {[%clk 0:00:05]}  Bd7 {[%clk 0:01:10]} 69. Kb6 {[%clk 0:00:05]}  Bf5 {[%clk 0:01:11]} 70. Kc6 {[%clk 0:00:05]}  Bd7+ {[%clk 0:01:12]} 71. Kd5 {[%clk 0:00:06]}  Bf5 {[%clk 0:01:12]} 72. Ke5 {[%clk 0:00:06]}  Kd7 {[%clk 0:01:12]} 73. Kf6 {[%clk 0:00:06]}  Kc8 {[%clk 0:01:13]} 74. Kf7 {[%clk 0:00:07]}  Kd7 {[%clk 0:01:13]} 75. Kf8 {[%clk 0:00:07]}  Kc8 {[%clk 0:01:12]} 76. Ke8 {[%clk 0:00:07]}  Bd7+ {[%clk 0:01:12]} 77. Kf7 {[%clk 0:00:07]}  Bf5 {[%clk 0:01:13]} 78. Ke8 {[%clk 0:00:07]}  Bd7+ {[%clk 0:01:12]} 79. Kf8 {[%clk 0:00:08]}  Bf5 {[%clk 0:01:12]} 80. Kg7 {[%clk 0:00:08]}  Kd7 {[%clk 0:01:12]} 81. Kf6 {[%clk 0:00:08]}  Kc8 {[%clk 0:01:12]} 82. Bd8 {[%clk 0:00:08]}  Kd7 {[%clk 0:01:11]} 83. Ke5 {[%clk 0:00:08]}  Kc8 {[%clk 0:01:11]} 84. Bf6 {[%clk 0:00:08]}  Kd7 {[%clk 0:01:12]} 85. Bg5 {[%clk 0:00:08]}  Kc8 {[%clk 0:01:12]} 86. Kf6 {[%clk 0:00:08]}  Kd7 {[%clk 0:01:13]} 87. Kf7 {[%clk 0:00:08]}  Be4 {[%clk 0:01:08]} 88. Kf8 {[%clk 0:00:08]}  Bf5 {[%clk 0:01:07]} 89. Kf7 {[%clk 0:00:07]}  Be4 {[%clk 0:01:07]} 90. c8=Q+ {[%clk 0:00:06]}  Kxc8 {[%clk 0:01:07]} 91. Ke7 {[%clk 0:00:07]}  Bf5 {[%clk 0:01:07]} 92. Ke8 {[%clk 0:00:07]}  Bd7+ {[%clk 0:01:05]} 93. Kf7 {[%clk 0:00:07]}  Bf5 {[%clk 0:01:06]} 94. Ke7 {[%clk 0:00:07]}  Bd7 {[%clk 0:01:03]} 95. Bf6 {[%clk 0:00:07]}  Bf5 {[%clk 0:01:03]} 96. Ke8 {[%clk 0:00:06]}  Bd7+ {[%clk 0:01:02]} 97. Ke7 {[%clk 0:00:06]}  Bf5 {[%clk 0:01:03]} 98. Kf7 {[%clk 0:00:07]}  Kd7 {[%clk 0:01:03]} 99. Be7 {[%clk 0:00:07]}  Be4 {[%clk 0:01:03]} 100. Kf6 {[%clk 0:00:07]}  Bf5 {[%clk 0:01:04]} 101. Kg5 {[%clk 0:00:07]}  Be4 {[%clk 0:01:04]} 102. Kf6 {[%clk 0:00:07]}  Bf5 {[%clk 0:01:04]} 103. Kg5 {[%clk 0:00:08]}  Be4 {[%clk 0:01:04]} 104. Kf6 {[%clk 0:00:08]} 1/2-1/2

[Event "December 12 Late 2023"]
[Site "https://www.chess.com"]
[Date "2023.12.12"]
[Round "10"]
[White "Stead, Kerry"]
[Black "Harrington, Steve"]
[Result "0-1"]
[Board "94"]
[TimeControl "180+1"]
[WhiteFideId "3202577"]
[BlackFideId "2038730"]
[WhiteElo "2071"]
[BlackElo "2129"]
[WhiteTeam "AUS"]
[BlackTeam "USA"]
[WhiteClock "0:00:00"]
[BlackClock "0:00:59"]

1. d4 {[%clk 0:01:06]}  d5 {[%clk 0:02:55]} 2. e4 {[%clk 0:01:06]}  dxe4 {[%clk 0:02:54]} 3. Nc3 {[%clk 0:01:06]}  Nc6 {[%clk 0:02:53]} 4. Bb5 {[%clk 0:01:05]}  Bd7 {[%clk 0:02:50]} 5. Nxe4 {[%clk 0:01:04]}  e6 {[%clk 0:02:50]} 6. c3 {[%clk 0:01:03]}  Nf6 {[%clk 0:02:50]} 7. Nxf6+ {[%clk 0:01:02]}  gxf6 {[%clk 0:02:44]} 8. Nf3 {[%clk 0:01:03]}  a6 {[%clk 0:02:41]} 9. Ba4 {[%clk 0:01:00]}  b5 {[%clk 0:02:39]} 10. Bc2 {[%clk 0:00:59]}  f5 {[%clk 0:02:38]} 11. Bf4 {[%clk 0:00:55]}  Bg7 {[%clk 0:02:34]} 12. Qe2 {[%clk 0:00:50]}  O-O {[%clk 0:02:33]} 13. Rg1 {[%clk 0:00:47]}  Re8 {[%clk 0:02:07]} 14. g4 {[%clk 0:00:46]}  fxg4 {[%clk 0:01:47]} 15. Rxg4 {[%clk 0:00:45]}  e5 {[%clk 0:01:47]} 16. dxe5 {[%clk 0:00:40]}  Bxg4 {[%clk 0:01:45]} 17. Rd1 {[%clk 0:00:32]}  Qe7 {[%clk 0:01:40]} 18. Qe4 {[%clk 0:00:22]}  f5 {[%clk 0:01:32]} 19. Qxc6 {[%clk 0:00:20]}  Rad8 {[%clk 0:01:15]} 20. Rxd8 {[%clk 0:00:16]}  Rxd8 {[%clk 0:01:16]} 21. e6 {[%clk 0:00:08]}  Bxf3 {[%clk 0:01:11]} 22. Qxf3 {[%clk 0:00:06]}  Qxe6+ {[%clk 0:01:12]} 23. Kf1 {[%clk 0:00:05]}  Kh8 {[%clk 0:01:06]} 24. Qh3 {[%clk 0:00:03]}  Rf8 {[%clk 0:01:01]} 25. Be3 {[%clk 0:00:00]}  f4 {[%clk 0:00:59]} 0-1

[Event "December 12 Late 2023"]
[Site "https://www.chess.com"]
[Date "2023.12.12"]
[Round "10"]
[White "Desideri, Ricardo Maruchi"]
[Black "Prokhorov, Oleksandr"]
[Result "0-1"]
[Board "97"]
[TimeControl "180+1"]
[WhiteFideId "2110440"]
[BlackFideId "14105578"]
[WhiteElo "2000"]
[BlackElo "2332"]
[WhiteTeam "BRA"]
[BlackTeam "UKR"]
[WhiteClock "0:00:07"]
[BlackClock "0:00:40"]

1. e4 {[%clk 0:03:00]}  c5 {[%clk 0:02:59]} 2. Nf3 {[%clk 0:02:59]}  e6 {[%clk 0:03:00]} 3. d4 {[%clk 0:02:59]}  cxd4 {[%clk 0:03:00]} 4. Nxd4 {[%clk 0:02:59]}  Qb6 {[%clk 0:03:01]} 5. Nb3 {[%clk 0:02:57]}  Nf6 {[%clk 0:03:00]} 6. Be3 {[%clk 0:02:56]}  Qc7 {[%clk 0:03:00]} 7. Nc3 {[%clk 0:02:55]}  Bb4 {[%clk 0:03:00]} 8. Qd3 {[%clk 0:02:52]}  d5 {[%clk 0:02:59]} 9. exd5 {[%clk 0:02:50]}  Nxd5 {[%clk 0:02:59]} 10. Bd4 {[%clk 0:02:49]}  O-O {[%clk 0:02:56]} 11. a3 {[%clk 0:02:48]}  Bxc3+ {[%clk 0:02:51]} 12. Bxc3 {[%clk 0:02:48]}  Nxc3 {[%clk 0:02:50]} 13. bxc3 {[%clk 0:02:47]}  Nd7 {[%clk 0:02:46]} 14. Be2 {[%clk 0:02:40]}  Nf6 {[%clk 0:02:46]} 15. O-O {[%clk 0:02:37]}  b6 {[%clk 0:02:46]} 16. Bf3 {[%clk 0:02:36]}  Rb8 {[%clk 0:02:46]} 17. Nd4 {[%clk 0:02:32]}  Rd8 {[%clk 0:02:40]} 18. Qe3 {[%clk 0:02:27]}  Bb7 {[%clk 0:02:40]} 19. Rad1 {[%clk 0:02:12]}  Bxf3 {[%clk 0:02:39]} 20. Nxf3 {[%clk 0:02:11]}  Nd5 {[%clk 0:02:38]} 21. Qg5 {[%clk 0:01:57]}  Nxc3 {[%clk 0:02:17]} 22. Rxd8+ {[%clk 0:01:52]}  Rxd8 {[%clk 0:02:11]} 23. h4 {[%clk 0:01:40]}  h6 {[%clk 0:02:10]} 24. Qe3 {[%clk 0:01:34]}  Nd5 {[%clk 0:02:09]} 25. Qe4 {[%clk 0:01:18]}  Qc5 {[%clk 0:02:01]} 26. Rd1 {[%clk 0:01:12]}  Rc8 {[%clk 0:02:00]} 27. Nd4 {[%clk 0:01:08]}  Qxa3 {[%clk 0:01:53]} 28. Nxe6 {[%clk 0:01:05]}  Nf6 {[%clk 0:01:39]} 29. Qf5 {[%clk 0:00:48]}  Qe7 {[%clk 0:01:25]} 30. Nxg7 {[%clk 0:00:43]}  Rd8 {[%clk 0:01:04]} 31. Rxd8+ {[%clk 0:00:38]}  Qxd8 {[%clk 0:01:04]} 32. Nh5 {[%clk 0:00:36]}  Qd1+ {[%clk 0:01:01]} 33. Kh2 {[%clk 0:00:33]}  Nxh5 {[%clk 0:01:00]} 34. Qc8+ {[%clk 0:00:30]}  Kg7 {[%clk 0:00:57]} 35. Qc3+ {[%clk 0:00:30]}  Nf6 {[%clk 0:00:53]} 36. Qg3+ {[%clk 0:00:28]}  Kh7 {[%clk 0:00:50]} 37. f3 {[%clk 0:00:25]}  Qxc2 {[%clk 0:00:43]} 38. Qf4 {[%clk 0:00:24]}  Qg6 {[%clk 0:00:42]} 39. g4 {[%clk 0:00:23]}  a5 {[%clk 0:00:42]} 40. h5 {[%clk 0:00:22]}  Qg5 {[%clk 0:00:42]} 41. Qc7 {[%clk 0:00:21]}  Kg7 {[%clk 0:00:41]} 42. Qxb6 {[%clk 0:00:20]}  Qe5+ {[%clk 0:00:41]} 43. Kh3 {[%clk 0:00:19]}  Nd5 {[%clk 0:00:40]} 44. Qc5 {[%clk 0:00:07]}  Nf4+ {[%clk 0:00:40]} 0-1

[Event "December 12 Late 2023"]
[Site "https://www.chess.com"]
[Date "2023.12.12"]
[Round "11"]
[White "Yoo, Christopher Woojin"]
[Black "Zhigalko, Sergei"]
[Result "1-0"]
[Board "4"]
[TimeControl "180+1"]
[WhiteFideId "30909694"]
[BlackFideId "13502956"]
[WhiteElo "3015"]
[BlackElo "2973"]
[WhiteTeam "USA"]
[BlackTeam "BLR"]
[WhiteClock "0:00:03"]
[BlackClock "0:00:01"]

1. e4 {[%clk 0:03:00]}  c5 {[%clk 0:03:00]} 2. Nf3 {[%clk 0:03:01]}  Nc6 {[%clk 0:03:00]} 3. Bb5 {[%clk 0:03:01]}  Nf6 {[%clk 0:03:01]} 4. Bxc6 {[%clk 0:02:59]}  dxc6 {[%clk 0:03:01]} 5. d3 {[%clk 0:02:59]}  Bg4 {[%clk 0:03:01]} 6. h3 {[%clk 0:02:59]}  Bh5 {[%clk 0:03:02]} 7. Nbd2 {[%clk 0:02:58]}  Nd7 {[%clk 0:03:00]} 8. Nc4 {[%clk 0:02:54]}  Qc7 {[%clk 0:03:00]} 9. O-O {[%clk 0:02:28]}  b5 {[%clk 0:02:56]} 10. Ne3 {[%clk 0:02:27]}  e6 {[%clk 0:02:56]} 11. g4 {[%clk 0:02:06]}  Bg6 {[%clk 0:02:56]} 12. Nh4 {[%clk 0:02:02]}  Be7 {[%clk 0:02:55]} 13. Neg2 {[%clk 0:02:03]}  f6 {[%clk 0:02:50]} 14. f4 {[%clk 0:02:00]}  Bf7 {[%clk 0:02:50]} 15. g5 {[%clk 0:02:00]}  O-O-O {[%clk 0:02:47]} 16. Qg4 {[%clk 0:01:57]}  Bd6 {[%clk 0:02:01]} 17. Be3 {[%clk 0:01:41]}  c4 {[%clk 0:01:41]} 18. a4 {[%clk 0:01:25]}  b4 {[%clk 0:01:17]} 19. dxc4 {[%clk 0:01:21]}  Bc5 {[%clk 0:01:08]} 20. Kh1 {[%clk 0:01:07]}  Bxe3 {[%clk 0:00:48]} 21. Nxe3 {[%clk 0:01:08]}  Nc5 {[%clk 0:00:49]} 22. f5 {[%clk 0:01:02]}  Rd4 {[%clk 0:00:38]} 23. gxf6 {[%clk 0:00:19]}  gxf6 {[%clk 0:00:36]} 24. fxe6 {[%clk 0:00:12]}  Bxe6 {[%clk 0:00:25]} 25. Qf3 {[%clk 0:00:13]}  Nxe4 {[%clk 0:00:13]} 26. Nhf5 {[%clk 0:00:13]}  Rd2 {[%clk 0:00:11]} 27. Ng4 {[%clk 0:00:08]}  Bxf5 {[%clk 0:00:10]} 28. Qxf5+ {[%clk 0:00:09]}  Kb8 {[%clk 0:00:08]} 29. Qxe4 {[%clk 0:00:09]}  h5 {[%clk 0:00:08]} 30. Nf2 {[%clk 0:00:07]}  Rg8 {[%clk 0:00:06]} 31. Rg1 {[%clk 0:00:04]}  Rxg1+ {[%clk 0:00:04]} 32. Kxg1 {[%clk 0:00:05]}  Qg3+ {[%clk 0:00:02]} 33. Qg2 {[%clk 0:00:06]}  Qe3 {[%clk 0:00:02]} 34. Qg8+ {[%clk 0:00:02]}  Kb7 {[%clk 0:00:02]} 35. Qg7+ {[%clk 0:00:03]}  Ka6 {[%clk 0:00:02]} 36. Qg2 {[%clk 0:00:03]}  Kb7 {[%clk 0:00:02]} 37. Kf1 {[%clk 0:00:02]}  Qe2+ {[%clk 0:00:01]} 38. Kg1 {[%clk 0:00:02]}  Qe3 {[%clk 0:00:02]} 39. Rf1 {[%clk 0:00:03]}  Rxc2 {[%clk 0:00:02]} 40. Qg7+ {[%clk 0:00:03]}  Kb6 {[%clk 0:00:02]} 41. Qg2 {[%clk 0:00:03]}  Rxb2 {[%clk 0:00:02]} 42. a5+ {[%clk 0:00:03]}  Kb7 {[%clk 0:00:01]} 43. Qg7+ {[%clk 0:00:03]}  Ka6 {[%clk 0:00:02]} 44. Qg2 {[%clk 0:00:03]}  h4 {[%clk 0:00:02]} 45. Qxc6+ {[%clk 0:00:03]}  Kxa5 {[%clk 0:00:01]} 46. Qb5# {[%clk 0:00:03]} 1-0